bitfinex-derivatives/quotes_BNBF0:USTF0_20250303
["timestamp","ask_amount","ask_price","bid_price","bid_amount"]
[1741024488391,0.82843458,594.36,593.94,0.28499296]
[1741024488695,0.82843458,594.36,593.95,0.33672868]
[1741024488894,0.82843458,594.36,593.96,0.28498822]
[1741024489092,0.82843458,594.36,593.97,0.33671734]
[1741024489295,0.82843458,594.36,593.98,0.28498822]
[1741024491992,0.82843458,594.36,593.99,0.28500403]
[1741024492193,0.82843458,594.36,593.98,0.28500403]
[1741024492390,0.82843458,594.36,593.99,0.28500403]
[1741024492590,0.82843458,594.36,593.98,0.28500403]
[1741024492792,0.82843458,594.36,593.99,0.28500403]
[1741024492995,0.82843458,594.36,594.0,0.28500403]
[1741024493196,0.82843458,594.36,594.01,0.28500403]
[1741024493397,0.82843458,594.36,594.02,0.28500403]
[1741024493594,0.82843458,594.36,594.03,0.28500403]
[1741024493796,0.82843458,594.36,593.98,0.28500403]
[1741024493991,0.82843458,594.36,593.99,0.28500403]
[1741024494291,0.82843458,594.36,594.0,0.28500403]
[1741024494495,0.82843458,594.36,594.01,0.28500403]
[1741024494695,0.82843458,594.36,593.98,0.28500403]
[1741024494897,0.82843458,594.36,593.99,0.28500403]
[1741024495197,0.72758446,594.36,594.0,0.28500403]
[1741024495395,0.72758446,594.36,594.01,0.28500403]
[1741024495598,0.72758446,594.36,593.98,0.28500403]
[1741024495797,0.72758446,594.36,593.99,0.28500403]
[1741024495998,0.72758446,594.36,593.98,0.28500403]
[1741024496197,0.72758446,594.36,593.99,0.28500403]
[1741024496395,0.72758446,594.36,594.0,0.28500403]
[1741024496595,0.72758446,594.36,593.97,0.33671734]
[1741024496596,0.72758446,594.36,594.01,1.5071589]
[1741024496801,0.72758446,594.36,594.02,0.28506931]
[1741024498900,0.72758446,594.36,594.03,0.28506931]
[1741024499101,0.72758446,594.36,593.98,0.28506931]
[1741024499301,0.72758446,594.36,593.99,0.28506931]
[1741024499600,0.72758446,594.36,593.97,0.33671734]
[1741024499601,0.72758446,594.36,594.0,0.28506931]
[1741024499903,0.72758446,594.36,594.01,0.28506931]
[1741024500104,0.72758446,594.36,594.02,0.28506931]
[1741024500306,0.72758446,594.36,593.98,0.28506931]
[1741024500505,0.72758446,594.36,593.99,0.28506931]
[1741024500697,0.72758446,594.36,593.98,0.28506931]
[1741024500903,0.72758446,594.36,593.99,0.28506931]
[1741024501097,0.72758446,594.36,593.98,0.28506931]
[1741024501298,0.72758446,594.36,593.99,0.28506931]
[1741024501502,0.72758446,594.36,593.98,0.28506931]
[1741024501705,0.72758446,594.36,593.99,0.28506931]
[1741024501904,0.72758446,594.36,593.98,0.28506931]
[1741024502101,0.72758446,594.36,593.99,0.28506931]
[1741024502306,0.72758446,594.36,593.97,1.84387624]
[1741024502307,0.72758446,594.36,593.98,0.28506931]
[1741024502507,0.72758446,594.36,593.97,0.33671734]
[1741024502707,0.72758446,594.36,593.98,0.28506934]
[1741024503710,0.72758446,594.36,593.97,0.33671734]
[1741024503908,0.72758446,594.36,593.98,0.28508846]
[1741024504312,0.72758446,594.36,594.05,1.5071589]
[1741024504514,0.72758446,594.36,594.06,0.28508846]
[1741024505916,0.72758446,594.36,594.07,0.28510863]
[1741024506212,0.72758446,594.36,594.08,0.28510863]
[1741024506414,0.72758446,594.36,594.09,0.28510863]
[1741024506611,0.72758446,594.36,594.16,1.5071589]
[1741024506807,0.991,594.39,594.17,0.28510863]
[1741024507414,0.991,594.39,594.16,1.5071589]
[1741024508214,0.991,594.39,594.1,1.5071589]
[1741024508413,0.991,594.39,594.11,0.28514251]
[1741024508815,0.991,594.39,594.1,1.5071589]
[1741024509012,0.991,594.39,594.11,0.28512943]
[1741024509516,0.991,594.39,594.1,1.5071589]
[1741024509714,0.991,594.39,593.95,1.5071589]
[1741024510019,0.991,594.39,593.96,0.28515304]
[1741024512422,0.991,594.39,593.97,0.28515304]
[1741024512724,0.991,594.39,593.98,0.28515304]
[1741024512929,0.991,594.39,593.65,0.28515304]
[1741024513126,0.991,594.39,593.66,0.62204621]
[1741024513327,0.991,594.39,593.67,0.62204053]
[1741024513525,0.991,594.39,593.68,0.28515304]
[1741024513722,0.991,594.39,593.69,0.28515304]
[1741024513921,0.87167756,594.39,593.7,0.28515304]
[1741024514129,0.87167756,594.39,593.71,0.28515304]
[1741024514330,0.87167756,594.39,593.67,0.33688749]
[1741024514331,0.87167756,594.39,593.93,1.5071589]
[1741024514627,0.87167756,594.39,593.94,0.28515304]
[1741024515128,0.87167756,594.39,593.93,1.5071589]
[1741024515424,0.87167756,594.39,593.94,0.28514879]
[1741024516128,0.87167756,594.39,593.95,1.5071589]
[1741024516426,0.87167756,594.39,593.96,0.28514879]
[1741024516823,0.87167756,594.39,593.97,0.28516363]
[1741024517025,0.87167756,594.39,593.98,0.28516363]
[1741024517226,0.87167756,594.39,593.96,0.28516363]
[1741024517427,0.87167756,594.39,593.99,0.28516363]
[1741024517724,0.87167756,594.39,594.0,0.28516363]
[1741024517924,0.87167756,594.39,594.01,0.28516363]
[1741024518124,0.87167756,594.39,594.02,0.28516363]
[1741024518326,0.87167756,594.39,593.86,1.5071589]
[1741024518523,0.87167756,594.39,593.87,0.28517122]
[1741024520130,0.87167756,594.39,593.87,1.79233012]
[1741024520333,0.87167756,594.39,593.88,0.28517122]
[1741024522026,0.87167756,594.39,593.76,1.5071589]
[1741024522027,0.87167756,594.39,593.77,0.28517122]
[1741024522224,0.87167756,594.39,593.78,0.28517122]
[1741024522427,0.87167756,594.39,593.77,0.28517122]
[1741024522630,0.87167756,594.39,593.78,0.28517122]
[1741024522825,0.87167756,594.39,593.77,0.28517122]
[1741024523132,0.87167756,594.39,593.78,0.28517122]
[1741024523431,0.87167756,594.39,593.79,0.28517122]
[1741024523731,0.87167756,594.39,593.8,0.28517122]
[1741024523932,0.87167756,594.39,593.81,0.28517122]
[1741024524234,0.87167756,594.39,593.82,0.28517122]
[1741024524533,0.87167756,594.39,593.83,0.28517122]
[1741024524735,0.87167756,594.39,593.76,0.28517122]
[1741024524933,0.87167756,594.39,593.77,0.28517122]
[1741024525229,0.87167756,594.39,593.78,0.28517122]
[1741024525426,0.87167756,594.39,593.72,0.28517122]
[1741024525632,0.87167756,594.39,593.73,0.28517122]
[1741024525831,0.984,594.38,593.72,0.28517122]
[1741024526133,0.984,594.38,593.73,0.28517122]
[1741024526334,0.984,594.38,593.74,0.2851695]
[1741024526533,0.984,594.38,593.75,0.2851695]
[1741024526835,0.984,594.38,593.84,1.5071589]
[1741024527034,0.984,594.38,593.85,0.2851695]
[1741024529231,0.984,594.38,593.86,0.2851695]
[1741024529533,0.984,594.38,593.82,1.5071589]
[1741024529736,0.984,594.38,593.83,0.28519318]
[1741024531031,0.984,594.38,593.83,1.79235208]
[1741024531235,0.984,594.38,593.84,0.28519318]
[1741024532837,0.984,594.38,593.85,0.28524665]
[1741024533033,0.984,594.38,593.84,0.28524665]
[1741024533233,0.984,594.38,593.85,0.28524665]
[1741024533433,0.984,594.38,593.68,0.28524665]
[1741024535133,0.984,594.38,593.58,0.28524665]
[1741024535335,0.984,594.38,593.59,0.28524665]
[1741024535537,0.984,594.38,593.58,0.28524665]
[1741024535736,0.984,594.38,593.59,0.28524665]
[1741024535935,0.984,594.38,593.58,0.28524665]
[1741024538640,0.984,594.38,593.59,0.28524665]
[1741024538832,0.984,594.38,593.6,0.28524665]
[1741024539036,0.984,594.38,593.56,0.28524665]
[1741024539233,0.984,594.38,593.57,0.28524665]
[1741024539440,0.984,594.38,593.58,0.28524665]
[1741024539635,0.984,594.38,593.55,1.5071589]
[1741024539842,0.984,594.38,593.56,0.28528064]
[1741024540541,0.984,594.38,593.55,0.28528064]
[1741024540735,0.984,594.38,593.54,1.5071589]
[1741024540938,0.984,594.38,593.55,0.28528424]
[1741024547350,0.984,594.38,593.56,0.28537755]
[1741024547549,0.984,594.38,593.55,0.28537755]
[1741024548445,0.33649073,594.37,593.55,0.28537755]
[1741024549244,0.33649073,594.37,593.24,0.28537755]
[1741024549445,1.017,594.36,593.25,0.28537755]
[1741024549648,0.33650206,594.35,593.24,0.28537755]
[1741024550644,0.33650206,594.35,593.03,0.28537755]
[1741024550849,0.33650206,594.35,593.04,0.62262292]
[1741024551046,0.33650206,594.35,593.05,0.62261724]
[1741024551249,0.33650206,594.35,593.06,0.62261155]
[1741024551451,0.33650206,594.35,593.07,0.62260587]
[1741024551652,0.33650206,594.35,593.08,0.62260018]
[1741024551947,0.33650206,594.35,593.09,0.62259449]
[1741024552149,0.33650206,594.35,593.33,1.5071589]
[1741024552350,0.33650206,594.35,593.34,0.2853344]
[1741024552551,0.33650206,594.35,593.33,1.5071589]
[1741024552552,0.33650206,594.35,593.35,0.2853344]
[1741024552750,0.33650206,594.35,593.36,0.2853344]
[1741024552952,0.33650206,594.35,593.37,0.2853344]
[1741024553152,0.33650206,594.35,593.38,0.2853344]
[1741024553455,0.33650206,594.35,593.39,0.2853344]
[1741024553650,0.33650206,594.35,593.33,1.5071589]
[1741024553846,0.33650206,594.35,593.34,0.2853094]
[1741024554055,0.33650206,594.35,593.35,0.2853094]
[1741024554257,0.33650206,594.35,593.36,1.7924683]
[1741024554555,0.33650206,594.35,593.37,0.2853094]
[1741024554755,0.33650206,594.35,593.36,1.5071589]
[1741024554756,0.33650206,594.35,593.38,0.2853094]
[1741024554950,0.33650206,594.35,593.39,0.2853094]
[1741024555154,0.33650206,594.35,593.4,0.2853094]
[1741024555351,0.33650206,594.35,593.41,0.2853094]
[1741024555550,0.33650206,594.35,593.42,0.2853094]
[1741024555754,0.33650206,594.35,593.43,0.2853094]
[1741024556055,0.33650206,594.35,593.44,0.2853094]
[1741024556257,0.33650206,594.35,593.45,0.2853094]
[1741024556556,0.33650206,594.35,593.46,0.2853094]
[1741024556757,0.33650206,594.35,593.47,0.2853094]
[1741024557056,0.33650206,594.35,593.48,0.2853094]
[1741024557258,0.33650206,594.35,593.49,0.2853094]
[1741024557453,0.33650206,594.35,593.5,0.2853094]
[1741024557757,0.33650206,594.35,593.51,0.2853094]
[1741024557951,0.33650206,594.35,593.44,1.5071589]
[1741024557952,0.33650206,594.35,593.52,0.2853094]
[1741024558151,0.33650206,594.35,593.53,0.2853094]
[1741024558350,0.33650206,594.35,593.59,1.5071589]
[1741024558551,0.33650206,594.35,593.6,0.2853094]
[1741024560559,0.33650206,594.35,593.61,0.2853094]
[1741024560761,0.33650206,594.35,593.62,0.2853094]
[1741024561061,0.33650206,594.35,593.63,0.2853094]
[1741024561256,0.33650206,594.35,593.59,0.2853094]
[1741024561460,0.33650206,594.35,593.6,0.2853094]
[1741024561656,0.33650206,594.35,593.59,0.2853094]
[1741024561855,0.33650206,594.35,593.6,0.2853094]
[1741024562055,0.33650206,594.35,593.59,0.2853094]
[1741024562261,0.33650206,594.35,593.6,0.2853094]
[1741024562461,0.33650206,594.35,593.61,0.2853094]
[1741024562761,0.33650206,594.35,593.62,0.2853094]
[1741024563056,0.33650206,594.35,593.63,0.2853094]
[1741024563357,0.33650206,594.35,593.64,0.2853094]
[1741024563564,0.33650206,594.35,593.58,0.2853094]
[1741024563765,0.33650206,594.35,593.59,0.2853094]
[1741024563956,0.33650206,594.35,593.58,0.2853094]
[1741024564156,0.33650206,594.35,593.54,1.5071589]
[1741024564157,0.33650206,594.35,593.59,0.2853094]
[1741024564353,0.33650206,594.35,593.6,0.28529063]
[1741024564555,0.33650206,594.35,593.61,0.28529063]
[1741024564757,0.33650206,594.35,593.62,0.28529063]
[1741024564955,0.33650206,594.35,593.55,0.28529063]
[1741024565153,0.33650206,594.35,593.56,0.28529063]
[1741024565355,0.33650206,594.35,593.55,0.28529063]
[1741024565657,0.33650206,594.35,593.56,0.28529063]
[1741024565861,0.33650206,594.35,593.44,0.28529063]
[1741024568370,0.33650206,594.35,593.47,1.5071589]
[1741024568565,0.33650206,594.35,593.48,0.28529063]
[1741024570765,0.33650206,594.35,593.32,0.28529063]
[1741024570968,0.33650206,594.35,593.33,0.62237117]
[1741024571169,0.33650206,594.35,593.34,0.28529063]
[1741024571368,0.33650206,594.35,593.35,0.33706918]
[1741024571570,0.33650206,594.35,593.36,0.28529063]
[1741024571769,0.33650206,594.35,593.37,0.33705782]
[1741024571969,0.33650206,594.35,593.38,0.28529063]
[1741024572166,1.017,594.36,593.39,0.33704646]
[1741024572370,1.017,594.36,593.4,0.2853138]
[1741024572574,1.017,594.36,593.41,0.3370351]
[1741024572770,1.017,594.36,593.45,1.5071589]
[1741024572963,1.017,594.36,593.46,0.2853138]
[1741024575066,1.017,594.36,593.47,0.2853138]
[1741024575268,1.017,594.36,593.48,0.2853138]
[1741024575472,1.017,594.36,593.53,1.5071589]
[1741024575673,1.017,594.36,593.54,0.2853138]
[1741024575873,1.017,594.36,593.55,0.2853138]
[1741024576073,1.017,594.36,593.56,0.2853138]
[1741024576267,1.017,594.36,593.57,0.2853138]
[1741024576475,1.017,594.36,593.54,0.2853138]
[1741024576673,1.017,594.36,593.55,0.2853138]
[1741024576868,1.017,594.36,593.54,0.2853138]
[1741024577069,1.017,594.36,593.55,0.28529493]
[1741024577270,1.017,594.36,593.79,1.5071589]
[1741024577474,0.984,594.38,593.8,0.28529493]
[1741024579274,0.984,594.38,593.81,0.28529493]
[1741024579471,0.984,594.38,593.82,0.28529493]
[1741024579674,0.984,594.38,593.83,0.28529493]
[1741024579872,0.984,594.38,593.71,0.28529493]
[1741024580075,0.984,594.38,593.72,0.28529493]
[1741024580276,0.984,594.38,593.73,0.28522321]
[1741024580473,0.984,594.38,593.74,0.28522321]
[1741024580676,1.187,594.37,593.75,1.79238211]
[1741024580879,1.187,594.37,593.76,0.28522321]
[1741024583379,1.187,594.37,593.63,0.28522321]
[1741024583579,1.187,594.37,593.62,1.5071589]
[1741024583778,1.187,594.37,593.63,0.28524814]
[1741024584879,1.187,594.37,593.64,0.28524814]
[1741024585082,1.187,594.37,593.45,0.28524814]
[1741024585980,0.861,594.36,593.45,0.28524814]
[1741024586784,0.861,594.36,593.44,1.5071589]
[1741024586785,0.861,594.36,593.46,0.28523881]
[1741024586980,0.861,594.36,593.47,0.28523881]
[1741024587186,0.861,594.36,593.48,0.28523881]
[1741024587484,0.861,594.36,593.49,0.28523881]
[1741024587684,0.861,594.36,593.5,0.28523881]
[1741024587884,0.861,594.36,593.51,0.28523881]
[1741024588185,1.75739824,594.98,593.52,0.28523881]
[1741024588385,0.3361514,594.97,593.53,0.62220577]
[1741024588686,0.3361514,594.97,593.54,0.62220009]
[1741024588886,0.3361514,594.97,593.55,0.28523881]
[1741024589085,0.3361514,594.97,593.56,0.33694992]
[1741024589287,0.3361514,594.97,593.64,1.5071589]
[1741024589482,0.3361514,594.97,593.65,0.28523881]
[1741024591081,0.764,594.96,593.65,0.28523881]
[1741024591282,0.3361627,594.95,593.65,0.28523881]
[1741024592082,0.3361627,594.95,593.66,0.28523881]
[1741024592287,0.3361627,594.95,593.61,0.28523881]
[1741024592482,0.3361627,594.95,593.62,0.28523881]
[1741024592788,0.3361627,594.95,593.63,0.28523881]
[1741024592987,1.1061627,594.95,593.61,0.28523881]
[1741024593188,1.1061627,594.95,593.62,0.28523881]
[1741024593385,1.1061627,594.95,593.63,0.28523881]
[1741024594187,1.1061627,594.95,593.62,1.5071589]
[1741024594188,1.1061627,594.95,593.64,0.28523881]
[1741024594386,1.1061627,594.95,593.63,0.28523881]
[1741024594588,1.1061627,594.95,593.62,1.5071589]
[1741024594786,1.1061627,594.95,593.63,0.28507121]
[1741024595785,1.1061627,594.95,593.66,1.5071589]
[1741024595987,1.1061627,594.95,593.67,0.28507121]
[1741024596288,1.1061627,594.95,593.68,0.28511863]
[1741024596489,1.1061627,594.95,593.67,0.28511863]
[1741024596689,1.1061627,594.95,593.68,0.28511863]
[1741024596985,1.1061627,594.95,593.69,0.28511863]
[1741024597189,1.1061627,594.95,593.67,0.28511863]
[1741024597390,1.1061627,594.95,593.68,0.28511863]
[1741024597585,1.1061627,594.95,593.58,0.28511863]
[1741024597791,1.1061627,594.95,593.59,0.28511863]
[1741024598090,1.1061627,594.95,593.6,0.28511863]
[1741024598289,1.1061627,594.95,593.61,0.28511863]
[1741024598488,1.1061627,594.95,593.62,0.28511863]
[1741024598688,1.1061627,594.95,593.63,0.28511863]
[1741024598888,1.1061627,594.95,593.64,0.28511863]
[1741024599185,1.7570655,594.94,593.65,0.28511863]
[1741024599388,1.7570655,594.94,593.56,0.33694992]
[1741024599389,0.33617965,594.92,593.56,0.33694992]
[1741024599587,0.33617965,594.92,593.57,0.28518379]
[1741024601986,2.09312687,594.92,593.57,0.28518379]
[1741024602591,2.09312687,594.92,593.56,0.33694992]
[1741024602791,2.09312687,594.92,593.57,0.28517063]
[1741024603492,0.33617965,594.92,593.57,0.28517063]
[1741024604885,0.33617965,594.92,593.58,0.33693857]
[1741024605094,0.33617965,594.92,593.59,0.28517063]
[1741024605794,0.33617965,594.92,593.58,0.33693857]
[1741024606092,0.33617965,594.92,593.59,0.28516617]
[1741024606493,0.33617965,594.92,593.6,0.28516617]
[1741024606791,0.33617965,594.92,593.61,0.28516617]
[1741024606992,0.33617965,594.92,593.62,0.28516617]
[1741024607192,0.33617965,594.92,593.63,0.28516617]
[1741024607388,0.33617965,594.92,593.64,0.28516617]
[1741024608192,2.09306774,594.92,593.64,0.28516617]
[1741024608991,2.09306774,594.92,593.64,1.79027423]
[1741024609196,1.173,594.91,593.65,0.28516617]
[1741024609387,0.33619095,594.9,593.65,0.28516617]
[1741024609987,0.33619095,594.9,593.66,0.28516617]
[1741024610188,0.33619095,594.9,593.7,1.50510806]
[1741024610387,0.33619095,594.9,593.71,0.28516617]
[1741024610586,0.33619095,594.9,593.72,0.28516617]
[1741024610787,0.33619095,594.9,593.73,0.28516617]
[1741024610987,0.33619095,594.9,593.74,0.28516617]
[1741024611295,0.33619095,594.9,593.75,0.28516617]
[1741024611486,0.33619095,594.9,593.76,0.28516617]
[1741024611691,0.33619095,594.9,593.71,0.28516617]
[1741024611892,0.33619095,594.9,593.72,0.28516617]
[1741024612088,0.33619095,594.9,593.58,0.33693857]
[1741024612089,0.33619095,594.9,593.82,1.50510806]
[1741024612291,0.33619095,594.9,593.83,0.28516617]
[1741024613890,0.33619095,594.9,593.84,0.28518986]
[1741024614088,0.33619095,594.9,593.85,0.28518986]
[1741024614293,0.33619095,594.9,593.86,0.28518986]
[1741024614596,0.33619095,594.9,593.87,0.28518986]
[1741024614895,0.33619095,594.9,593.88,0.28518986]
[1741024615090,0.33619095,594.9,593.85,0.28518986]
[1741024615293,0.33619095,594.9,593.86,0.28518986]
[1741024615493,0.33619095,594.9,593.87,0.28518986]
[1741024615695,0.33619095,594.9,593.88,0.28518986]
[1741024615889,0.33619095,594.9,593.85,0.28518986]
[1741024616092,0.33619095,594.9,593.86,0.28518986]
[1741024616395,0.33619095,594.9,593.87,0.28518986]
[1741024616595,0.33619095,594.9,593.85,0.28518986]
[1741024616897,0.33619095,594.9,593.86,0.28518986]
[1741024617194,0.33619095,594.9,593.87,0.28518986]
[1741024617399,0.33619095,594.9,593.85,0.28518986]
[1741024617597,0.33619095,594.9,593.86,0.28518986]
[1741024617890,0.33619095,594.9,593.87,0.28518986]
[1741024618090,0.33619095,594.9,593.88,0.28518986]
[1741024618395,0.33619095,594.9,593.89,0.28518986]
[1741024618595,0.33619095,594.9,593.9,0.28521457]
[1741024618796,0.33619095,594.9,593.91,0.28521457]
[1741024618995,0.33619095,594.9,593.71,1.50510806]
[1741024618996,0.33619095,594.9,593.92,0.28521457]
[1741024619192,0.33619095,594.9,593.72,0.28521457]
[1741024619392,0.33619095,594.9,593.73,0.28521457]
[1741024619593,0.33619095,594.9,593.74,0.28521457]
[1741024619801,0.33619095,594.9,593.75,0.28521457]
[1741024619999,0.33619095,594.9,593.72,0.28521457]
[1741024620398,0.33619095,594.9,593.68,0.28521457]
[1741024620593,0.33619095,594.9,593.69,0.28521457]
[1741024620793,0.33619095,594.9,593.7,0.28521457]
[1741024620996,0.33619095,594.9,593.71,0.28521457]
[1741024621197,0.33619095,594.9,593.68,0.28521457]
[1741024621398,0.33619095,594.9,593.69,0.28521457]
[1741024621698,0.33619095,594.9,593.7,0.28521457]
[1741024621897,0.33619095,594.9,593.71,0.28521457]
[1741024622098,0.33619095,594.9,593.72,0.28521457]
[1741024622398,0.974,594.89,593.73,0.28521457]
[1741024622698,0.33620225,594.88,593.74,0.28521457]
[1741024622901,0.33620225,594.88,593.75,0.28521457]
[1741024623097,0.33620225,594.88,593.76,0.28521457]
[1741024623296,0.33620225,594.88,593.69,0.28521457]
[1741024623495,0.33620225,594.88,593.7,0.28521457]
[1741024623699,0.33620225,594.88,593.69,0.28521457]
[1741024623897,0.33620225,594.88,593.7,0.28521457]
[1741024624298,0.33620225,594.88,593.69,1.50510806]
[1741024624499,0.33620225,594.88,593.7,0.2851842]
[1741024625500,0.33620225,594.88,593.71,0.2851842]
[1741024625702,0.33620225,594.88,593.72,0.2851842]
[1741024625898,0.33620225,594.88,593.8,1.50510806]
[1741024626101,0.33620225,594.88,593.81,0.28514007]
[1741024626499,0.33620225,594.88,593.82,0.28514007]
[1741024626700,0.33620225,594.88,593.83,0.28514007]
[1741024626997,0.33620225,594.88,593.84,0.28514007]
[1741024627202,0.33620225,594.88,593.85,0.28514007]
[1741024627496,0.33620225,594.88,594.07,1.50510806]
[1741024627694,0.33620225,594.88,594.08,0.28514007]
[1741024630300,0.33620225,594.88,594.09,0.28514007]
[1741024630599,0.33620225,594.88,594.1,0.28514007]
[1741024630802,0.33620225,594.88,594.02,0.28514007]
[1741024631000,0.33620225,594.88,594.03,0.28514007]
[1741024631201,0.33620225,594.88,594.02,0.28514007]
[1741024631400,0.33620225,594.88,594.03,0.28514007]
[1741024631596,0.33620225,594.88,594.02,0.28514007]
[1741024631801,0.33620225,594.88,594.03,0.28514007]
[1741024631999,0.33620225,594.88,594.02,0.28514007]
[1741024632196,0.33620225,594.88,594.03,0.28514007]
[1741024632497,0.33620225,594.88,594.04,0.28514007]
[1741024632700,0.33620225,594.88,594.05,0.28514007]
[1741024632900,0.33620225,594.88,593.91,0.28514007]
[1741024633097,0.33620225,594.88,593.92,0.28514007]
[1741024633298,0.33620225,594.88,593.9,1.50510806]
[1741024633299,0.33620225,594.88,593.93,0.28514007]
[1741024633602,0.33620225,594.88,593.94,0.28514007]
[1741024633797,0.33620225,594.88,593.95,0.28502441]
[1741024633998,0.33620225,594.88,593.91,0.28502441]
[1741024634205,0.33620225,594.88,593.92,0.28502441]
[1741024634505,0.33620225,594.88,593.9,1.50510806]
[1741024634506,0.33620225,594.88,593.93,0.28502441]
[1741024634696,0.33620225,594.88,593.94,0.28502441]
[1741024634896,0.33620225,594.88,593.95,0.28502441]
[1741024635098,0.33620225,594.88,593.96,0.28502441]
[1741024635303,0.33620225,594.88,593.9,1.50510806]
[1741024635499,0.33620225,594.88,593.91,0.28495723]
[1741024635799,0.33620225,594.88,593.92,0.28495723]
[1741024636001,0.33620225,594.88,593.84,0.28495723]
[1741024636202,0.33620225,594.88,593.85,0.28495723]
[1741024636402,0.33620225,594.88,593.86,0.28495723]
[1741024636599,0.33620225,594.88,593.87,0.28495723]
[1741024636905,0.33620225,594.88,593.83,1.50510806]
[1741024636906,0.33620225,594.88,593.88,0.28495723]
[1741024637198,0.33620225,594.88,593.89,0.28495723]
[1741024637404,0.33620225,594.88,593.84,0.28495723]
[1741024637603,0.33620225,594.88,593.85,0.28495723]
[1741024637798,0.33620225,594.88,593.86,0.28495723]
[1741024638003,0.33620225,594.88,593.95,1.50510806]
[1741024638199,0.33620225,594.88,593.96,0.28495723]
[1741024638402,0.33620225,594.88,593.95,1.50510806]
[1741024638605,0.33620225,594.88,593.96,0.28511205]
[1741024639697,0.33620225,594.88,593.97,0.28511205]
[1741024639896,0.33620225,594.88,593.9,1.50510806]
[1741024639897,0.33620225,594.88,593.91,0.28511205]
[1741024640097,0.33620225,594.88,593.92,0.28511205]
[1741024640302,0.33620225,594.88,593.93,0.28511205]
[1741024640497,0.33620225,594.88,593.91,0.28511205]
[1741024640698,0.33620225,594.88,593.92,0.28511205]
[1741024640900,0.33620225,594.88,593.91,0.28511205]
[1741024641208,0.33620225,594.88,593.92,0.28511205]
[1741024641399,0.33620225,594.88,593.93,0.28511205]
[1741024641598,0.33620225,594.88,593.91,0.28511205]
[1741024642903,0.33620225,594.88,593.92,0.28511205]
[1741024643104,0.33620225,594.88,593.66,1.50510806]
[1741024643304,0.33620225,594.88,593.67,0.28512133]
[1741024644208,0.33620225,594.88,593.71,1.50510806]
[1741024644399,0.33620225,594.88,593.72,0.28512133]
[1741024646303,0.33620225,594.88,593.74,1.50510806]
[1741024646503,0.33620225,594.88,593.75,0.28514917]
[1741024647502,0.948,594.87,593.75,0.28514917]
[1741024647702,0.33621356,594.86,593.75,0.28514917]
[1741024648104,0.33621356,594.86,593.74,1.50510806]
[1741024648307,0.33621356,594.86,593.58,0.33693857]
[1741024648308,0.33621356,594.86,593.75,0.28522339]
[1741024648507,0.33621356,594.86,593.7,0.28522339]
[1741024648712,0.33621356,594.86,593.71,0.28522339]
[1741024648910,0.33621356,594.86,593.7,0.28522339]
[1741024649104,0.33621356,594.86,593.71,0.28522339]
[1741024649303,0.33621356,594.86,593.72,0.28522339]
[1741024649511,0.33621356,594.86,593.73,0.28522339]
[1741024650014,2.066652,594.85,593.74,0.28522339]
[1741024650209,0.3093425,594.84,593.75,0.28522339]
[1741024650403,0.3093425,594.84,593.76,0.28522339]
[1741024650609,0.3093425,594.84,593.7,0.28522339]
[1741024650811,4.68567241,594.84,593.71,0.28522339]
[1741024651107,4.68567241,594.84,593.58,2.8977127]
[1741024651108,0.3093425,594.83,593.72,0.28522339]
[1741024651312,0.33624182,594.81,593.58,1.84204663]
[1741024651510,0.30937909,594.8,593.59,0.28532667]
[1741024651909,0.33625878,594.78,593.59,0.28532667]
[1741024652109,0.30937909,594.77,593.59,0.28532667]
[1741024652408,0.33627574,594.75,593.59,0.28532667]
[1741024652711,0.33627574,594.75,593.58,1.50510806]
[1741024652911,1.75766453,594.74,593.49,1.50510806]
[1741024653113,1.75766453,594.74,593.5,0.28536853]
[1741024654712,1.75766453,594.74,593.51,0.28537322]
[1741024654912,0.3362927,594.72,593.52,0.28537322]
[1741024655113,0.3362927,594.72,593.53,0.28537322]
[1741024655309,0.3362927,594.72,592.91,1.50510806]
[1741024655310,0.3362927,594.72,593.54,0.28537322]
[1741024655608,0.3362927,594.72,592.91,1.50510806]
[1741024655812,1.75824176,594.71,592.92,0.62269818]
[1741024656012,1.75824176,594.71,592.93,0.62269249]
[1741024656013,0.33630967,594.69,592.93,0.62269249]
[1741024656208,0.33630967,594.69,592.94,0.6226868]
[1741024656411,0.33630967,594.69,592.95,0.62268111]
[1741024656711,0.33630967,594.69,592.96,0.62267542]
[1741024656911,0.33630967,594.69,592.97,0.62266974]
[1741024657106,0.33630967,594.69,592.98,0.62266405]
[1741024657313,0.33630967,594.69,592.99,0.62265836]
[1741024657509,0.33630967,594.69,593.0,0.28538455]
[1741024657707,0.33630967,594.69,592.99,0.33727381]
[1741024657911,0.33630967,594.69,593.0,0.28543499]
[1741024658111,0.30950581,594.68,593.01,0.33726244]
[1741024658311,0.33632664,594.66,593.02,0.28543499]
[1741024658511,0.30950581,594.65,593.02,0.28543499]
[1741024658911,2.06791045,594.65,593.02,0.28543499]
[1741024659112,0.3363436,594.63,593.02,0.28543499]